fUSD/lending_fUSD_20250212
["ID","MTS","AMOUNT","RATE_DAILY","PERIOD"]
[352900995,1739397043214,-533.21274673,0.00016438,2]
[352900997,1739397043224,-500.0,0.00016438,2]
[352900999,1739397043234,-533.23,0.00016438,2]
[352901001,1739397043244,-500.0,0.00016438,2]
[352901003,1739397043255,-500.0,0.00016438,2]
[352901006,1739397043265,-500.0,0.00016438,2]
[352901008,1739397043275,-437.10188684,0.00016438,2]
[352901010,1739397043286,-561.24,0.00016438,2]
[352901012,1739397043296,-500.0,0.00016438,2]
[352901014,1739397043306,-500.0,0.00016438,2]
[352901016,1739397043316,-500.0,0.00016438,2]
[352901018,1739397043326,-500.0,0.00016438,2]
[352901020,1739397043336,-500.0,0.00016438,2]
[352901022,1739397043346,-500.0,0.00016438,2]
[352901024,1739397043356,-500.0,0.00016438,2]
[352901026,1739397043366,-500.59330565,0.00016438,2]
[352901028,1739397043376,-295.48028682,0.00016438,2]
[352901030,1739397043386,-500.0,0.00016438,2]
[352901032,1739397043395,-500.0,0.00016438,2]
[352901034,1739397043405,-500.0,0.00016438,2]
[352901036,1739397043415,-500.0,0.00016438,2]
[352901038,1739397043425,-500.0,0.00016438,2]
[352901041,1739397043435,-500.0,0.00016438,2]
[352901043,1739397043445,-500.0,0.00016438,2]
[352901045,1739397043455,-500.0,0.00016438,2]
[352901047,1739397043466,-500.0,0.00016438,2]
[352901049,1739397043476,-1007.95,0.00016438,2]
[352901051,1739397043486,-542.52,0.00016438,2]
[352901053,1739397043495,-500.0,0.00016438,2]
[352901055,1739397043505,-500.0,0.00016438,2]
[352901057,1739397043514,-850.65,0.00016438,2]
[352901059,1739397043524,-500.42443569,0.00016438,2]
[352901061,1739397043534,-500.0,0.00016438,2]
[352901063,1739397043544,-500.0,0.00016438,2]
[352901065,1739397043553,-500.0,0.00016438,2]
[352901067,1739397043564,-500.0,0.00016438,2]
[352901069,1739397043573,-500.0,0.00016438,2]
[352901071,1739397043583,-500.0,0.00016438,2]
[352901073,1739397043593,-500.0,0.00016438,2]
[352901075,1739397043603,-500.0,0.00016438,2]
[352901077,1739397043613,-505.76021618,0.00016438,2]
[352901079,1739397043622,-501.87612972,0.00016438,2]
[352901081,1739397043632,-836.82,0.00016438,2]
[352901083,1739397043641,-500.0,0.00016438,2]
[352901086,1739397043651,-511.59,0.00016438,2]
[352901088,1739397043661,-500.0,0.00016438,2]
[352901090,1739397043671,-500.0,0.00016438,2]
[352901092,1739397043680,-500.0,0.00016438,2]
[352901109,1739397043840,-500.0,0.00016438,2]
[352901111,1739397043851,-500.0,0.00016438,2]
[352901113,1739397043861,-500.0,0.00016438,2]
[352901115,1739397043870,-500.0,0.00016438,2]
[352901117,1739397043879,-500.0,0.00016438,2]
[352901119,1739397043889,-169.31366226,0.00016438,2]
[352901121,1739397043899,-500.0,0.00016438,2]
[352901123,1739397043908,-500.0,0.00016438,2]
[352901125,1739397043918,-500.0,0.00016438,2]
[352901127,1739397043928,-500.0,0.00016438,2]
[352901129,1739397043937,-500.0,0.00016438,2]
[352901131,1739397043947,-500.0,0.00016438,2]
[352901133,1739397043958,-500.0,0.00016438,2]
[352901135,1739397043967,-500.0,0.00016438,2]
[352901137,1739397043977,-500.0,0.00016438,2]
[352901139,1739397043986,-500.0,0.00016438,2]
[352901141,1739397043996,-500.0,0.00016438,2]
[352901143,1739397044006,-500.0,0.00016438,2]
[352901145,1739397044015,-500.0,0.00016438,2]
[352901147,1739397044025,-500.0,0.00016438,2]
[352901149,1739397044035,-500.0,0.00016438,2]
[352901151,1739397044044,-500.0,0.00016438,2]
[352901153,1739397044054,-500.0,0.00016438,2]
[352901155,1739397044064,-500.0,0.00016438,2]
[352901157,1739397044074,-544.95,0.00016438,2]
[352901160,1739397044087,-531.08,0.00016438,2]
[352901162,1739397044097,-521.09,0.00016438,2]
[352901164,1739397044106,-500.0,0.00016438,2]
[352901166,1739397044116,-500.0,0.00016438,2]
[352901168,1739397044127,-500.0,0.00016438,2]
[352901170,1739397044136,-500.0,0.00016438,2]
[352901172,1739397044146,-500.0,0.00016438,2]
[352901174,1739397044156,-500.0,0.00016438,2]
[352901176,1739397044166,-737.82,0.00016438,2]
[352901178,1739397044175,-502.13854207,0.00016438,2]
[352901180,1739397044185,-589.59,0.00016438,2]
[352901182,1739397044194,-500.0,0.00016438,2]
[352901184,1739397044203,-500.0,0.00016438,2]
[352901186,1739397044214,-500.0,0.00016438,2]
[352901188,1739397044223,-500.0,0.00016438,2]
[352901190,1739397044233,-500.0,0.00016438,2]
[352901192,1739397044243,-500.0,0.00016438,2]
[352901194,1739397044252,-500.0,0.00016438,2]
[352901196,1739397044262,-500.0,0.00016438,2]
[352901198,1739397044272,-500.0,0.00016438,2]
[352901200,1739397044281,-522.63,0.00016438,2]
[352901202,1739397044291,-500.0,0.00016438,2]
[352901204,1739397044300,-500.0,0.00016438,2]
[352901206,1739397044310,-544.87,0.00016438,2]
[352901208,1739397044319,-500.0,0.00016438,2]
[352901210,1739397044328,-500.0,0.00016438,2]
[352901212,1739397044338,-901.61,0.00016438,2]
[352901214,1739397044347,-609.63,0.00016438,2]
[352901216,1739397044357,-500.0,0.00016438,2]
[352901218,1739397044366,-500.0,0.00016438,2]
[352901220,1739397044376,-500.0,0.00016438,2]
[352901222,1739397044385,-500.0,0.00016438,2]
[352901224,1739397044395,-561.78,0.00016438,2]
[352901226,1739397044404,-500.0,0.00016438,2]
[352901228,1739397044414,-500.0,0.00016438,2]
[352901230,1739397044424,-500.0,0.00016438,2]
[352901232,1739397044433,-909.34,0.00016438,2]
[352901233,1739397044443,-599.56,0.00016438,2]
[352901234,1739397044452,-500.0,0.00016438,2]
[352901235,1739397044462,-500.0,0.00016438,2]
[352901236,1739397044471,-500.0,0.00016438,2]
[352901237,1739397044481,-500.0,0.00016438,2]
[352901238,1739397044491,-520.25865526,0.00016438,2]
[352901239,1739397044500,-500.0,0.00016438,2]
[352901240,1739397044509,-500.0,0.00016438,2]
[352901241,1739397044519,-661.66,0.00016438,2]
[352901242,1739397044528,-577.04,0.00016438,2]
[352901243,1739397044539,-500.0,0.00016438,2]
[352901244,1739397044548,-501.62463423,0.00016438,2]
[352901245,1739397044558,-381.44556606,0.00016438,2]
[352901246,1739397044567,-488.48310354,0.00016438,2]
[352901247,1739397044577,-500.0,0.00016438,2]
[352901248,1739397044586,-500.0,0.00016438,2]
[352901249,1739397044597,-500.0,0.00016438,2]
[352901250,1739397044606,-500.0,0.00016438,2]
[352901251,1739397044616,-500.0,0.00016438,2]
[352901252,1739397044625,-500.0,0.00016438,2]
[352901253,1739397044634,-500.0,0.00016438,2]
[352901255,1739397044644,-500.0,0.00016438,2]
[352901257,1739397044654,-501.86927921,0.00016438,2]
[352901259,1739397044664,-500.0,0.00016438,2]
[352901261,1739397044673,-500.22009326,0.00016438,2]
[352901262,1739397044682,-500.0,0.00016438,2]
[352901263,1739397044692,-500.0,0.00016438,2]
[352901264,1739397044702,-882.93,0.00016438,2]
[352901265,1739397044711,-500.0,0.00016438,2]
[352901266,1739397044723,-606.25,0.00016438,2]
[352901267,1739397044732,-500.0,0.00016438,2]
[352901268,1739397044742,-452.27074414,0.00016438,2]
[352901269,1739397044751,-500.0,0.00016438,2]
[352901270,1739397044760,-500.0,0.00016438,2]
[352901272,1739397044770,-500.46383861,0.00016438,2]
[352901274,1739397044779,-500.0,0.00016438,2]
[352901276,1739397044788,-896.42,0.00016438,2]
[352901278,1739397044798,-500.0,0.00016438,2]
[352901280,1739397044808,-500.0,0.00016438,2]
[352901282,1739397044818,-500.0,0.00016438,2]
[352901284,1739397044828,-500.0,0.00016438,2]
[352901286,1739397044839,-500.0,0.00016438,2]
[352901288,1739397044849,-500.0,0.00016438,2]
[352901290,1739397044859,-572.82,0.00016438,2]
[352901292,1739397044869,-537.41748152,0.00016438,2]
[352901294,1739397044880,-537.49,0.00016438,2]
[352901295,1739397044889,-500.0,0.00016438,2]
[352901297,1739397044899,-500.0,0.00016438,2]
[352901299,1739397044908,-500.0,0.00016438,2]
[352901301,1739397044918,-500.0,0.00016438,2]
[352901302,1739397044928,-500.0,0.00016438,2]
[352901303,1739397044937,-500.0,0.00016438,2]
[352901304,1739397044947,-500.8168162,0.00016438,2]
[352901305,1739397044957,-500.0,0.00016438,2]
[352901306,1739397044967,-500.0,0.00016438,2]
[352901307,1739397044978,-500.0,0.00016438,2]
[352901308,1739397044988,-500.0,0.00016438,2]
[352901309,1739397044998,-898.74,0.00016438,2]
[352901310,1739397045007,-500.0,0.00016438,2]
[352901311,1739397045018,-500.0,0.00016438,2]
[352901312,1739397045028,-500.0,0.00016438,2]
[352901313,1739397045037,-632.87,0.00016438,2]
[352901314,1739397045047,-587.54373043,0.00016438,2]
[352901315,1739397045057,-500.0,0.00016438,2]
[352901316,1739397045066,-500.0,0.00016438,2]
[352901317,1739397045076,-500.0,0.00016438,2]
[352901318,1739397045090,-500.0,0.00016438,2]
[352901319,1739397045099,-500.0,0.00016438,2]
[352901320,1739397045110,-500.0,0.00016438,2]
[352901321,1739397045121,-500.0,0.00016438,2]
[352901322,1739397045131,-500.0,0.00016438,2]
[352901323,1739397045141,-892.17,0.00016438,2]
[352901324,1739397045151,-500.0,0.00016438,2]
[352901325,1739397045164,-500.0,0.00016438,2]
[352901326,1739397045174,-500.0,0.00016438,2]
[352901327,1739397045185,-500.0,0.00016438,2]
[352901328,1739397045195,-500.0,0.00016438,2]
[352901329,1739397045204,-500.0,0.00016438,2]
[352901330,1739397045214,-523.74,0.00016438,2]
[352901331,1739397045226,-500.0,0.00016438,2]
[352901332,1739397045235,-500.0,0.00016438,2]
[352901333,1739397045245,-500.0,0.00016438,2]
[352901334,1739397045256,-500.0,0.00016438,2]
[352901335,1739397045266,-500.0,0.00016438,2]
[352901336,1739397045276,-556.15,0.00016438,2]
[352901337,1739397045286,-500.0,0.00016438,2]
[352901338,1739397045296,-500.0,0.00016438,2]
[352901339,1739397045306,-500.0,0.00016438,2]
[352901340,1739397045316,-500.0,0.00016438,2]
[352901341,1739397045326,-510.85097555,0.00016438,2]
[352901342,1739397045337,-503.72173682,0.00016438,2]
[352901343,1739397045347,-903.0,0.00016438,2]
[352901344,1739397045356,-500.0,0.00016438,2]
[352901345,1739397045367,-500.0,0.00016438,2]
[352901346,1739397045378,-2292.63,0.00016438,2]
[352901347,1739397045388,-500.0,0.00016438,2]
[352901348,1739397045398,-500.0,0.00016438,2]
[352901349,1739397045407,-500.0,0.00016438,2]
[352901350,1739397045417,-500.0,0.00016438,2]
[352901351,1739397045427,-500.0,0.00016438,2]
[352901352,1739397045437,-500.0,0.00016438,2]
[352901353,1739397045447,-500.0,0.00016438,2]
[352901354,1739397045457,-500.84114335,0.00016438,2]
[352901355,1739397045468,-191.32801111,0.00016438,2]
[352901356,1739397045478,-500.0,0.00016438,2]
[352901357,1739397045605,-500.0,0.00016438,2]
[352901358,1739397045616,-161.5038213,0.00016438,2]
[352901359,1739397045627,-500.0,0.00016438,2]
[352901360,1739397045637,-181.35302192,0.00016438,2]
[352901362,1739397045648,-1114.41,0.00016438,2]
[352901363,1739397045658,-503.42391031,0.00016438,2]
[352901364,1739397045669,-500.0,0.00016438,2]
[352901365,1739397045680,-500.0,0.00016438,2]
[352901366,1739397045689,-500.0,0.00016438,2]
[352901367,1739397045699,-501.79122677,0.00016438,2]
[352901368,1739397045709,-500.0,0.00016438,2]
[352901369,1739397045719,-500.0,0.00016438,2]
[352901370,1739397045729,-510.03157747,0.00016438,2]
[352901371,1739397045739,-1171.06,0.00016438,2]
[352901372,1739397045749,-500.0,0.00016438,2]
[352901373,1739397045759,-500.0,0.00016438,2]
[352901374,1739397045769,-500.0,0.00016438,2]
[352901375,1739397045779,-500.0,0.00016438,2]
[352901376,1739397045788,-500.0,0.00016438,2]
[352901377,1739397045798,-500.0,0.00016438,2]
[352901378,1739397045807,-572.38,0.00016438,2]
[352901379,1739397045817,-500.0,0.00016438,2]
[352901380,1739397045827,-500.0,0.00016438,2]
[352901381,1739397045839,-500.0,0.00016438,2]
[352901382,1739397045849,-500.0,0.00016438,2]
[352901383,1739397045860,-1032.42,0.00016438,2]
[352901384,1739397045870,-500.0,0.00016438,2]
[352901385,1739397045880,-500.0,0.00016438,2]
[352901386,1739397045890,-500.0,0.00016438,2]
[352901387,1739397045900,-531.15488311,0.00016438,2]
[352901388,1739397045911,-500.0,0.00016438,2]
[352901389,1739397045921,-1402.96,0.00016438,2]
[352901390,1739397045931,-500.0,0.00016438,2]
[352901391,1739397045941,-500.0,0.00016438,2]
[352901392,1739397045952,-756.78,0.00016438,2]
[352901393,1739397045963,-500.0,0.00016438,2]
[352901394,1739397045975,-522.91,0.00016438,2]
[352901395,1739397045985,-519.79444173,0.00016438,2]
[352901396,1739397045995,-500.0,0.00016438,2]
[352901397,1739397046005,-500.0,0.00016438,2]
[352901398,1739397046015,-1369.08,0.00016438,2]
[352901399,1739397046026,-500.0,0.00016438,2]
[352901400,1739397046036,-891.76,0.00016438,2]
[352901401,1739397046046,-500.0,0.00016438,2]
[352901402,1739397046055,-500.0,0.00016438,2]
[352901403,1739397046065,-500.0,0.00016438,2]
[352901404,1739397046075,-500.0,0.00016438,2]
[352901405,1739397046089,-500.0,0.00016438,2]
[352901406,1739397046099,-557.39,0.00016438,2]
[352901407,1739397046110,-500.0,0.00016438,2]
[352901408,1739397046121,-500.0,0.00016438,2]
[352901409,1739397046131,-500.0,0.00016438,2]
[352901410,1739397046141,-500.0,0.00016438,2]
[352901411,1739397046151,-500.0,0.00016438,2]
[352901412,1739397046162,-500.0,0.00016438,2]
[352901413,1739397046173,-500.0,0.00016438,2]
[352901414,1739397046183,-500.0,0.00016438,2]
[352901415,1739397046193,-1207.74,0.00016438,2]
[352901416,1739397046203,-500.0,0.00016438,2]
[352901417,1739397046213,-500.0,0.00016438,2]
[352901418,1739397046224,-500.0,0.00016438,2]
[352901419,1739397046233,-199.47592605,0.00016438,2]
[352901420,1739397046243,-500.0,0.00016438,2]
[352901421,1739397046253,-679.5,0.00016438,2]
[352901422,1739397046263,-500.0,0.00016438,2]
[352901423,1739397046274,-500.0,0.00016438,2]
[352901424,1739397046284,-500.0,0.00016438,2]
[352901425,1739397046294,-500.0,0.00016438,2]
[352901426,1739397046304,-940.46,0.00016438,2]
[352901427,1739397046314,-500.0,0.00016438,2]
[352901428,1739397046324,-500.0,0.00016438,2]
[352901429,1739397046334,-1290.32,0.00016438,2]
[352901430,1739397046344,-500.0,0.00016438,2]
[352901431,1739397046354,-500.0,0.00016438,2]
[352901432,1739397046364,-500.0,0.00016438,2]
[352901433,1739397046375,-150.73118791,0.00016438,2]
[352901434,1739397046385,-500.0,0.00016438,2]
[352901435,1739397046395,-500.0,0.00016438,2]
[352901436,1739397046405,-500.0,0.00016438,2]
[352901437,1739397046415,-415.4804824,0.00016438,2]
[352901438,1739397046425,-500.0,0.00016438,2]
[352901439,1739397046435,-408.73422175,0.00016438,2]
[352901440,1739397046445,-500.0,0.00016438,2]
[352901441,1739397046454,-1126.63,0.00016438,2]
[352901442,1739397046464,-500.0,0.00016438,2]
[352901443,1739397046476,-974.32,0.00016438,2]
[352901444,1739397046486,-500.0,0.00016438,2]
[352901445,1739397046496,-502.22115506,0.00016438,2]
[352901446,1739397046506,-500.0,0.00016438,2]
[352901447,1739397046516,-500.0,0.00016438,2]
[352901448,1739397046526,-1121.36,0.00016438,2]
[352901449,1739397046536,-500.0,0.00016438,2]
[352901450,1739397046546,-500.0,0.00016438,2]
[352901451,1739397046557,-500.0,0.00016438,2]
[352901452,1739397046568,-500.0,0.00016438,2]
[352901453,1739397046580,-504.26898799,0.00016438,2]
[352901454,1739397046590,-500.0,0.00016438,2]
[352901455,1739397046599,-891.79,0.00016438,2]
[352901456,1739397046609,-500.0,0.00016438,2]
[352901457,1739397046619,-2983.66,0.00016438,2]
[352901458,1739397046630,-500.0,0.00016438,2]
[352901459,1739397046641,-607.09,0.00016438,2]
[352901460,1739397046650,-500.0,0.00016438,2]
[352901461,1739397046660,-500.0,0.00016438,2]
[352901462,1739397046670,-500.0,0.00016438,2]
[352901463,1739397046680,-500.0,0.00016438,2]
[352901464,1739397046691,-500.0,0.00016438,2]
[352901465,1739397046702,-1977.46,0.00016438,2]
[352901466,1739397046712,-500.0,0.00016438,2]
[352901467,1739397046723,-500.0,0.00016438,2]
[352901468,1739397046733,-500.0,0.00016438,2]
[352901469,1739397046744,-500.0,0.00016438,2]
[352901470,1739397046754,-500.0,0.00016438,2]
[352901471,1739397046764,-500.0,0.00016438,2]
[352901472,1739397046774,-1187.41,0.00016438,2]
[352901473,1739397046783,-500.0,0.00016438,2]
[352901474,1739397046794,-500.0,0.00016438,2]
[352901475,1739397046804,-544.41,0.00016438,2]
[352901476,1739397046813,-500.0,0.00016438,2]
[352901477,1739397046823,-699.49,0.00016438,2]
[352901478,1739397046834,-500.0,0.00016438,2]
[352901479,1739397046845,-500.0,0.00016438,2]
[352901480,1739397046856,-500.0,0.00016438,2]
[352901481,1739397046866,-416.94502417,0.00016438,2]
[352901482,1739397046877,-500.0,0.00016438,2]
[352901483,1739397046887,-500.0,0.00016438,2]
[352901484,1739397046897,-500.0,0.00016438,2]
[352901485,1739397046907,-500.0,0.00016438,2]
[352901486,1739397046918,-854.76,0.00016438,2]
[352901487,1739397046928,-746.6,0.00016438,2]
[352901488,1739397046937,-500.0,0.00016438,2]
[352901489,1739397046946,-500.0,0.00016438,2]
[352901490,1739397046959,-500.0,0.00016438,2]
[352901491,1739397046970,-1291.08,0.00016438,2]
[352901492,1739397046981,-500.0,0.00016438,2]
[352901493,1739397046991,-1069.13,0.00016438,2]
[352901494,1739397047000,-500.0,0.00016438,2]
[352901495,1739397047010,-500.0,0.00016438,2]
[352901496,1739397047020,-500.0,0.00016438,2]
[352901497,1739397047032,-500.0,0.00016438,2]
[352901498,1739397047042,-1466.71,0.00016438,2]
[352901499,1739397047052,-5735.63,0.00016438,2]
[352901500,1739397047064,-845.43,0.00016438,2]
[352901501,1739397047074,-515.85,0.00016438,2]
[352901502,1739397047085,-500.0,0.00016438,2]
[352901503,1739397047095,-500.0,0.00016438,2]
[352901504,1739397047105,-500.0,0.00016438,2]
[352901505,1739397047114,-1495.85,0.00016438,2]
[352901506,1739397047127,-535.46,0.00016438,2]
[352901507,1739397047136,-1660.07,0.00016438,2]
[352901508,1739397047146,-500.0,0.00016438,2]
[352901509,1739397047156,-500.0,0.00016438,2]
[352901510,1739397047168,-500.0,0.00016438,2]
[352901511,1739397047177,-503.24523693,0.00016438,2]
[352901512,1739397047306,-646.5,0.00016438,2]
[352901513,1739397047317,-505.09615374,0.00016438,2]
[352901514,1739397047327,-500.0,0.00016438,2]
[352901515,1739397047338,-500.0,0.00016438,2]
[352901516,1739397047348,-500.0,0.00016438,2]
[352901517,1739397047358,-500.0,0.00016438,2]
[352901518,1739397047367,-496.83707001,0.00016438,2]
[352901519,1739397047378,-710.88,0.00016438,2]
[352901520,1739397047388,-674.49,0.00016438,2]
[352901521,1739397047397,-500.0,0.00016438,2]
[352901522,1739397047407,-500.0,0.00016438,2]
[352901523,1739397047417,-500.0,0.00016438,2]
[352901524,1739397047427,-500.0,0.00016438,2]
[352901525,1739397047437,-1399.34,0.00016438,2]
[352901526,1739397047447,-2814.99,0.00016438,2]
[352901527,1739397047457,-971.14,0.00016438,2]
[352901528,1739397047468,-500.0,0.00016438,2]
[352901529,1739397047479,-500.0,0.00016438,2]
[352901530,1739397047489,-917.58,0.00016438,2]
[352901531,1739397047499,-504.15690453,0.00016438,2]
[352901532,1739397047510,-500.0,0.00016438,2]
[352901533,1739397047520,-500.0,0.00016438,2]
[352901534,1739397047530,-500.0,0.00016438,2]
[352901535,1739397047539,-805.92,0.00016438,2]
[352901536,1739397047549,-500.0,0.00016438,2]
[352901537,1739397047558,-221.33069015,0.00016438,2]
[352901538,1739397047568,-503.50560142,0.00016438,2]
[352901539,1739397047577,-500.0,0.00016438,2]
[352901540,1739397047588,-500.0,0.00016438,2]
[352901541,1739397047598,-502.23964734,0.00016438,2]
[352901542,1739397047608,-1484.32,0.00016438,2]
[352901543,1739397047618,-500.0,0.00016438,2]
[352901544,1739397047629,-500.0,0.00016438,2]
[352901545,1739397047638,-500.0,0.00016438,2]
[352901546,1739397047649,-1103.49,0.00016438,2]
[352901547,1739397047660,-1735.96,0.00016438,2]
[352901548,1739397047670,-500.0,0.00016438,2]
[352901549,1739397047680,-2035.47,0.00016438,2]
[352901550,1739397047690,-502.35741859,0.00016438,2]
[352901551,1739397047700,-500.0,0.00016438,2]
[352901552,1739397047710,-1140.81,0.00016438,2]
[352901553,1739397047719,-4429.94,0.00016438,2]
[352901554,1739397047729,-500.0,0.00016438,2]
[352901555,1739397047739,-505.14195764,0.00016438,2]
[352901556,1739397047749,-500.0,0.00016438,2]
[352901557,1739397047758,-501.96785895,0.00016438,2]
[352901558,1739397047767,-500.0,0.00016438,2]
[352901559,1739397047776,-500.0,0.00016438,2]
[352901560,1739397047788,-500.0,0.00016438,2]
[352901561,1739397047797,-500.0,0.00016438,2]
[352901562,1739397047808,-2050.27,0.00016438,2]
[352901563,1739397047819,-500.0,0.00016438,2]
[352901564,1739397047828,-994.88,0.00016438,2]
[352901565,1739397047838,-500.0,0.00016438,2]
[352901566,1739397047847,-2316.33,0.00016438,2]
[352901567,1739397047856,-1922.94,0.00016438,2]
[352901568,1739397047865,-500.0,0.00016438,2]
[352901569,1739397047874,-273.45674688,0.00016438,2]
[352901570,1739397047883,-500.0,0.00016438,2]
[352901571,1739397047893,-500.0,0.00016438,2]
[352901572,1739397047903,-500.0,0.00016438,2]
[352901573,1739397047913,-501.79446669,0.00016438,2]
[352901574,1739397047923,-500.0,0.00016438,2]
[352901575,1739397047934,-500.0,0.00016438,2]
[352901576,1739397047944,-500.0,0.00016438,2]
[352901577,1739397047955,-500.0,0.00016438,2]
[352901578,1739397047965,-1011.91,0.00016438,2]
[352901579,1739397047977,-500.0,0.00016438,2]
[352901580,1739397047987,-500.0,0.00016438,2]
[352901581,1739397047998,-518.99768423,0.00016438,2]
[352901582,1739397048008,-500.0,0.00016438,2]
[352901583,1739397048019,-500.0,0.00016438,2]
[352901584,1739397048029,-964.72,0.00016438,2]
[352901585,1739397048040,-500.0,0.00016438,2]
[352901586,1739397048050,-500.0,0.00016438,2]
[352901587,1739397048060,-2145.06,0.00016438,2]
[352901588,1739397048070,-500.0,0.00016438,2]
[352901589,1739397048081,-1037.32,0.00016438,2]
[352901590,1739397048094,-500.0,0.00016438,2]
[352901591,1739397048105,-500.0,0.00016438,2]
[352901592,1739397048115,-551.2,0.00016438,2]
[352901593,1739397048126,-500.0,0.00016438,2]
[352901594,1739397048136,-500.0,0.00016438,2]
[352901595,1739397048146,-1211.54,0.00016438,2]
[352901596,1739397048157,-500.0,0.00016438,2]
[352901597,1739397048166,-2159.41,0.00016438,2]
[352901598,1739397048177,-500.0,0.00016438,2]
[352901599,1739397048189,-500.0,0.00016438,2]
[352901600,1739397048198,-500.0,0.00016438,2]
[352901601,1739397048208,-500.0,0.00016438,2]
[352901602,1739397048218,-500.0,0.00016438,2]
[352901603,1739397048229,-500.0,0.00016438,2]
[352901604,1739397048239,-500.0,0.00016438,2]
[352901605,1739397048250,-500.0,0.00016438,2]
[352901606,1739397048260,-1605.7,0.00016438,2]
[352901607,1739397048270,-2434.13,0.00016438,2]
[352901608,1739397048280,-3474.3,0.00016438,2]
[352901609,1739397048290,-2136.47,0.00016438,2]
[352901610,1739397048300,-500.0,0.00016438,2]
[352901611,1739397048309,-500.0,0.00016438,2]
[352901612,1739397048318,-731.91,0.00016438,2]
[352901613,1739397048328,-500.0,0.00016438,2]
[352901614,1739397048337,-885.34,0.00016438,2]
[352901615,1739397048347,-500.0,0.00016438,2]
[352901616,1739397048356,-500.0,0.00016438,2]
[352901617,1739397048365,-500.0,0.00016438,2]
[352901618,1739397048374,-501.97319758,0.00016438,2]
[352901619,1739397048383,-755.43,0.00016438,2]
[352901620,1739397048393,-500.0,0.00016438,2]
[352901621,1739397048402,-500.0,0.00016438,2]
[352901622,1739397048412,-500.0,0.00016438,2]
[352901623,1739397048423,-500.0,0.00016438,2]
[352901624,1739397048432,-500.0,0.00016438,2]
[352901625,1739397048442,-500.0,0.00016438,2]
[352901626,1739397048452,-500.0,0.00016438,2]
[352901627,1739397048461,-623.67,0.00016438,2]
[352901628,1739397048470,-500.0,0.00016438,2]
[352901629,1739397048479,-501.33122381,0.00016438,2]
[352901630,1739397048491,-1778.81,0.00016438,2]
[352901631,1739397048500,-500.0,0.00016438,2]
[352901632,1739397048510,-500.0,0.00016438,2]
[352901633,1739397048520,-1769.96,0.00016438,2]
[352901634,1739397048530,-500.0,0.00016438,2]
[352901635,1739397048540,-500.0,0.00016438,2]
[352901636,1739397048551,-500.0,0.00016438,2]
[352901637,1739397048561,-500.0,0.00016438,2]
[352901638,1739397048572,-500.0,0.00016438,2]
[352901639,1739397048583,-500.0,0.00016438,2]
[352901640,1739397048593,-1416.87,0.00016438,2]
[352901641,1739397048603,-506.25685506,0.00016438,2]
[352901642,1739397048614,-500.0,0.00016438,2]